fUST/lending_fUST_20251119
["ID","MTS","AMOUNT","RATE_DAILY","PERIOD"]
[394422560,1763557805313,-179.37638629,0.00013023,2]
[394422561,1763557805335,-87.75347104,0.00013089,2]
[394422562,1763557805359,-181.9381395,0.00013089,2]
[394422563,1763557831573,-170.54440839,0.0001286,2]
[394422591,1763557832467,-4624.983028,0.0001286,2]
[394422598,1763557832523,-332.30234197,0.0001286,2]
[394422654,1763557833045,-244.75107191,0.0001286,2]
[394422715,1763557836683,-854.8180224,0.0001286,2]
[394422750,1763557838402,-2383.7001362,0.0001286,2]
[394422753,1763557838413,-8611.09900887,0.0001299,2]
[394422755,1763557838426,-118.0618605,0.00013089,2]
[394422757,1763557838436,-300.0,0.00013089,2]
[394422759,1763557838445,-300.0,0.00013089,2]
[394422761,1763557838456,-1200.0,0.00013089,2]
[394422763,1763557838466,-500.0,0.0001309,2]
[394422765,1763557838476,-425.72415665,0.0001309,2]
[394422767,1763557838487,-500.0,0.0001309,2]
[394422769,1763557838496,-500.0,0.0001309,2]
[394422771,1763557838505,-581.18068047,0.0001309,2]
[394422773,1763557838515,-500.0,0.0001309,2]
[394422775,1763557838524,-500.0,0.0001309,2]
[394422777,1763557838534,-581.18068047,0.0001309,2]
[394422779,1763557838543,-500.0,0.0001309,2]
[394422781,1763557838552,-500.0,0.0001309,2]
[394422783,1763557838561,-500.0,0.0001309,2]
[394422786,1763557838571,-581.18068047,0.0001309,2]
[394422788,1763557838581,-500.0,0.0001309,2]
[394422791,1763557838590,-500.0,0.0001309,2]
[394422793,1763557838599,-500.0,0.0001309,2]
[394422795,1763557838609,-500.0,0.0001309,2]
[394422797,1763557838618,-581.18068047,0.0001309,2]
[394422799,1763557838627,-500.0,0.0001309,2]
[394422801,1763557838636,-581.18068047,0.0001309,2]
[394422803,1763557838645,-500.0,0.0001309,2]
[394422805,1763557838654,-500.0,0.0001309,2]
[394422807,1763557838664,-581.18068047,0.0001309,2]
[394422809,1763557838673,-500.0,0.0001309,2]
[394422812,1763557838683,-500.0,0.0001309,2]
[394422813,1763557838692,-500.0,0.0001309,2]
[394422815,1763557838701,-500.0,0.0001309,2]
[394422817,1763557838710,-581.18068047,0.0001309,2]
[394422819,1763557838720,-500.0,0.0001309,2]
[394422821,1763557838729,-500.0,0.0001309,2]
[394422823,1763557838739,-581.18068047,0.0001309,2]
[394422825,1763557838749,-500.0,0.0001309,2]
[394422828,1763557838759,-581.18068047,0.0001309,2]
[394422830,1763557838768,-500.0,0.0001309,2]
[394422832,1763557838778,-300.0,0.0001309,2]
[394422834,1763557838788,-581.18068047,0.0001309,2]
[394422836,1763557838797,-500.0,0.0001309,2]
[394422838,1763557838806,-581.18068047,0.0001309,2]
[394422840,1763557838816,-500.0,0.0001309,2]
[394422842,1763557838825,-581.18068047,0.0001309,2]
[394422844,1763557838834,-581.18068047,0.0001309,2]
[394422846,1763557838844,-650.00000001,0.0001309,2]
[394422848,1763557838852,-581.18068047,0.0001309,2]
[394422850,1763557838862,-581.18068047,0.0001309,2]
[394422852,1763557838871,-500.0,0.0001309,2]
[394422854,1763557838880,-581.18068047,0.0001309,2]
[394422856,1763557838890,-500.0,0.0001309,2]
[394422858,1763557838900,-581.18068047,0.0001309,2]
[394422860,1763557838909,-581.18068047,0.0001309,2]
[394422862,1763557838919,-581.18068047,0.0001309,2]
[394422864,1763557838929,-581.18068047,0.0001309,2]
[394422866,1763557838939,-581.18068047,0.0001309,2]
[394422867,1763557838949,-581.18068047,0.0001309,2]
[394422870,1763557838959,-581.18068047,0.0001309,2]
[394422872,1763557838968,-581.18068047,0.0001309,2]
[394422873,1763557838977,-581.18068047,0.0001309,2]
[394422876,1763557838988,-581.18068047,0.0001309,2]
[394422878,1763557838997,-581.18068047,0.0001309,2]
[394422880,1763557839007,-581.18068047,0.0001309,2]
[394422882,1763557839016,-581.18068047,0.0001309,2]
[394422884,1763557839026,-581.18068047,0.0001309,2]
[394422885,1763557839035,-581.18068047,0.0001309,2]
[394422887,1763557839045,-581.18068047,0.0001309,2]
[394422889,1763557839055,-581.18068047,0.0001309,2]
[394422892,1763557839065,-581.18068047,0.0001309,2]
[394422893,1763557839074,-581.18068047,0.0001309,2]
[394422896,1763557839084,-581.18068047,0.0001309,2]
[394422898,1763557839094,-581.18068047,0.0001309,2]
[394422900,1763557839103,-581.18068047,0.0001309,2]
[394422913,1763557839214,-581.18068047,0.0001309,2]
[394422915,1763557839224,-581.18068047,0.0001309,2]
[394422917,1763557839236,-581.18068047,0.0001309,2]
[394422919,1763557839245,-581.18068047,0.0001309,2]
[394422921,1763557839255,-581.18068047,0.0001309,2]
[394422923,1763557839264,-581.18068047,0.0001309,2]
[394422925,1763557839272,-500.0,0.0001309,2]
[394422927,1763557839282,-500.0,0.0001309,2]
[394422928,1763557839292,-500.0,0.0001309,2]
[394422930,1763557839301,-500.0,0.0001309,2]
[394422933,1763557839310,-500.0,0.0001309,2]
[394422935,1763557839320,-500.0,0.0001309,2]
[394422936,1763557839329,-500.0,0.0001309,2]
[394422938,1763557839338,-9774.55907457,0.0001309,2]
[394422941,1763557839347,-500.0,0.0001309,2]
[394422942,1763557839356,-590.95519628,0.0001309,2]
[394422945,1763557839366,-500.0,0.0001309,2]
[394422946,1763557839375,-9774.55907457,0.0001309,2]
[394422949,1763557839388,-500.0,0.0001309,2]
[394422951,1763557839397,-590.95519628,0.0001309,2]
[394422953,1763557839406,-9774.55907457,0.0001309,2]
[394422955,1763557839415,-500.0,0.0001309,2]
[394422957,1763557839424,-590.95519628,0.0001309,2]
[394422959,1763557839435,-9774.55907457,0.0001309,2]
[394422961,1763557839444,-590.95519628,0.0001309,2]
[394422963,1763557839453,-500.0,0.0001309,2]
[394422965,1763557839463,-9774.55907457,0.0001309,2]
[394422967,1763557839473,-590.95519628,0.0001309,2]
[394422969,1763557839482,-500.0,0.0001309,2]
[394422971,1763557839491,-9774.55907457,0.0001309,2]
[394422973,1763557839501,-590.95519628,0.0001309,2]
[394422975,1763557839510,-500.0,0.0001309,2]
[394422976,1763557839519,-9774.55907457,0.0001309,2]
[394422978,1763557839528,-590.95519628,0.0001309,2]
[394422980,1763557839537,-500.0,0.0001309,2]
[394422982,1763557839547,-590.95519628,0.0001309,2]
[394422984,1763557839556,-9774.55907457,0.0001309,2]
[394422987,1763557839566,-590.95519628,0.0001309,2]
[394422989,1763557839575,-500.0,0.0001309,2]
[394422991,1763557839584,-9774.55907457,0.0001309,2]
[394422993,1763557839594,-590.95519628,0.0001309,2]
[394422995,1763557839603,-500.0,0.0001309,2]
[394422997,1763557839612,-590.95519628,0.0001309,2]
[394422998,1763557839621,-9774.55907457,0.0001309,2]
[394423001,1763557839630,-500.0,0.0001309,2]
[394423003,1763557839639,-590.95519628,0.0001309,2]
[394423005,1763557839648,-9774.55907457,0.0001309,2]
[394423006,1763557839657,-500.0,0.0001309,2]
[394423009,1763557839667,-590.95519628,0.0001309,2]
[394423010,1763557839677,-9774.55907457,0.0001309,2]
[394423012,1763557839686,-500.0,0.0001309,2]
[394423014,1763557839695,-590.95519628,0.0001309,2]
[394423016,1763557839704,-9774.55907457,0.0001309,2]
[394423018,1763557839713,-500.0,0.0001309,2]
[394423020,1763557839722,-500.0,0.0001309,2]
[394423022,1763557839731,-500.0,0.0001309,2]
[394423023,1763557839740,-9774.55907457,0.0001309,2]
[394423024,1763557839749,-500.0,0.0001309,2]
[394423025,1763557839758,-9774.55907457,0.0001309,2]
[394423026,1763557839767,-590.95519628,0.0001309,2]
[394423027,1763557839777,-9774.55907457,0.0001309,2]
[394423028,1763557839786,-500.0,0.0001309,2]
[394423029,1763557839795,-590.95519628,0.0001309,2]
[394423030,1763557839804,-9774.55907457,0.0001309,2]
[394423031,1763557839814,-590.95519628,0.0001309,2]
[394423032,1763557839823,-500.0,0.0001309,2]
[394423033,1763557839832,-9774.55907457,0.0001309,2]
[394423034,1763557839841,-590.95519628,0.0001309,2]
[394423035,1763557839850,-9774.55907457,0.0001309,2]
[394423036,1763557839860,-590.95519628,0.0001309,2]
[394423037,1763557839869,-500.0,0.0001309,2]
[394423038,1763557839879,-590.95519628,0.0001309,2]
[394423040,1763557839889,-9774.55907457,0.0001309,2]
[394423042,1763557839898,-590.95519628,0.0001309,2]
[394423044,1763557839908,-500.0,0.0001309,2]
[394423046,1763557839917,-9774.55907457,0.0001309,2]
[394423048,1763557839926,-590.95519628,0.0001309,2]
[394423049,1763557839935,-500.0,0.0001309,2]
[394423052,1763557839945,-590.95519628,0.0001309,2]
[394423053,1763557839954,-9774.55907457,0.0001309,2]
[394423055,1763557839963,-9774.55907457,0.0001309,2]
[394423057,1763557839973,-590.95519628,0.0001309,2]
[394423059,1763557839982,-9774.55907457,0.0001309,2]
[394423061,1763557839993,-590.95519628,0.0001309,2]
[394423063,1763557840003,-512.1326434,0.0001309,2]
[394423065,1763557840012,-590.95519628,0.0001309,2]
[394423068,1763557840022,-9774.55907457,0.0001309,2]
[394423070,1763557840031,-590.95519628,0.0001309,2]
[394423072,1763557840041,-9774.55907457,0.0001309,2]
[394423074,1763557840050,-590.95519628,0.0001309,2]
[394423076,1763557840059,-590.95519628,0.0001309,2]
[394423078,1763557840069,-9774.55907457,0.0001309,2]
[394423080,1763557840079,-9774.55907457,0.0001309,2]
[394423082,1763557840089,-590.95519628,0.0001309,2]
[394423084,1763557840098,-590.95519628,0.0001309,2]
[394423086,1763557840107,-9774.55907457,0.0001309,2]
[394423088,1763557840117,-590.95519628,0.0001309,2]
[394423090,1763557840127,-9774.55907457,0.0001309,2]
[394423092,1763557840136,-590.95519628,0.0001309,2]
[394423094,1763557840145,-590.95519628,0.0001309,2]
[394423096,1763557840154,-590.95519628,0.0001309,2]
[394423098,1763557840164,-590.95519628,0.0001309,2]
[394423100,1763557840173,-9774.55907457,0.0001309,2]
[394423103,1763557840182,-9774.55907457,0.0001309,2]
[394423105,1763557840191,-590.95519628,0.0001309,2]
[394423107,1763557840199,-590.95519628,0.0001309,2]
[394423109,1763557840208,-9774.55907457,0.0001309,2]
[394423111,1763557840218,-590.95519628,0.0001309,2]
[394423113,1763557840227,-9774.55907457,0.0001309,2]
[394423115,1763557840236,-590.95519628,0.0001309,2]
[394423117,1763557840245,-590.95519628,0.0001309,2]
[394423119,1763557840254,-590.95519628,0.0001309,2]
[394423120,1763557840263,-590.95519628,0.0001309,2]
[394423122,1763557840272,-590.95519628,0.0001309,2]
[394423124,1763557840281,-590.95519628,0.0001309,2]
[394423127,1763557840290,-590.95519628,0.0001309,2]
[394423129,1763557840299,-590.95519628,0.0001309,2]
[394423131,1763557840310,-592.5967385,0.0001309,2]
[394423133,1763557840319,-592.5967385,0.0001309,2]
[394423135,1763557840329,-592.5967385,0.0001309,2]
[394423137,1763557840338,-592.5967385,0.0001309,2]
[394423139,1763557840347,-592.5967385,0.0001309,2]
[394423141,1763557840356,-592.5967385,0.0001309,2]
[394423143,1763557840365,-592.5967385,0.0001309,2]
[394423145,1763557840375,-592.5967385,0.0001309,2]
[394423147,1763557840387,-592.5967385,0.0001309,2]
[394423149,1763557840396,-592.5967385,0.0001309,2]
[394423151,1763557840405,-592.5967385,0.0001309,2]
[394423153,1763557840414,-592.5967385,0.0001309,2]
[394423155,1763557840423,-592.5967385,0.0001309,2]
[394423157,1763557840434,-592.5967385,0.0001309,2]
[394423159,1763557840444,-592.5967385,0.0001309,2]
[394423161,1763557840453,-592.5967385,0.0001309,2]
[394423163,1763557840464,-592.5967385,0.0001309,2]
[394423165,1763557840473,-592.5967385,0.0001309,2]
[394423167,1763557840482,-592.5967385,0.0001309,2]
[394423169,1763557840492,-592.5967385,0.0001309,2]
[394423171,1763557840501,-592.5967385,0.0001309,2]
[394423173,1763557840510,-592.5967385,0.0001309,2]
[394423174,1763557840519,-592.5967385,0.0001309,2]
[394423176,1763557840528,-592.5967385,0.0001309,2]
[394423178,1763557840537,-592.5967385,0.0001309,2]
[394423180,1763557840546,-592.5967385,0.0001309,2]
[394423182,1763557840555,-9896.74106301,0.0001309,2]
[394423184,1763557840564,-9896.74106301,0.0001309,2]
[394423186,1763557840573,-9896.74106301,0.0001309,2]
[394423188,1763557840582,-9896.74106301,0.0001309,2]
[394423190,1763557840591,-9896.74106301,0.0001309,2]
[394423192,1763557840600,-9896.74106301,0.0001309,2]
[394423194,1763557840610,-9896.74106301,0.0001309,2]
[394423197,1763557840619,-9896.74106301,0.0001309,2]
[394423199,1763557840629,-9896.74106301,0.0001309,2]
[394423201,1763557840638,-9896.74106301,0.0001309,2]
[394423203,1763557840647,-592.59673857,0.0001309,2]
[394423205,1763557840657,-9896.74106299,0.0001309,2]
[394423207,1763557840667,-9896.74106299,0.0001309,2]
[394423209,1763557840675,-684279.57763422,0.00013091,2]
[394423220,1763557840772,-103376.17863878,0.00013091,2]
[394423222,1763557840783,-985.82384296,0.00013091,2]
[394423225,1763557840798,-752.73625706,0.00013091,2]
[394423308,1763557841552,-3e-08,0.00013091,2]
[394423310,1763557841563,-23817.0614023,0.00013091,2]
[394423336,1763557842101,-265.64765197,0.00013091,2]
[394423344,1763557861155,-532.56953448,0.0001296,2]
[394423345,1763557863166,-257.44676495,0.0001296,2]
[394423346,1763557864734,-300.0,0.00012959,2]
[394423347,1763557864758,-107.44498926,0.0001296,2]
[394423348,1763557867511,-184.130986,0.0001296,2]
[394423349,1763557879113,581.88,0.00012329,2]
[394423350,1763557906157,-196.95588608,0.0001283,2]
[394423351,1763557921035,-48.41620584,0.0001283,2]
[394423352,1763557921057,-169.45799399,0.0001296,2]
[394423353,1763557936073,-200.68193262,0.00012859,2]
[394423354,1763557938706,-160.10204297,0.00012859,2]
[394423355,1763557940227,-245.51235665,0.00012859,2]
[394423357,1763557942288,-296.53143497,0.00012859,2]
[394423358,1763557945574,-222.49687808,0.00012859,2]
[394423378,1763557981851,177.11,5e-05,2]
[394423381,1763557982274,177.11,7.3e-05,2]
[394423382,1763557982512,177.11,9.7e-05,2]
[394423386,1763558011599,-245.05203424,0.00012859,2]
[394423387,1763558019777,999.0,0.00012024,2]
[394423388,1763558042099,211.07,5e-05,2]
[394423389,1763558042404,211.07,0.00012,2]
[394423390,1763558042661,-365.60154542,0.00012859,2]
[394423391,1763558044169,-490.88684348,0.00012859,2]
[394423392,1763558050812,-175.7228579,0.0001273,2]
[394423393,1763558053189,-500.0,0.0001273,2]
[394423394,1763558054602,-261.89247249,0.0001273,2]
[394423395,1763558058324,-248.27374537,0.0001273,2]
[394423396,1763558066847,35206.1811221,0.00012024,2]
[394423397,1763558175992,-46.80567926,0.0001273,2]
[394423398,1763558176021,-30.59978292,0.00012794,2]
[394423399,1763558176034,-46.80567926,0.00012794,2]
[394423400,1763558176045,-98.38339638,0.00012794,2]
[394423401,1763558176054,-77.40546218,0.00012859,2]
[394423402,1763558192184,-154.84721429,0.00012603,2]
[394423403,1763558194254,-128.34805215,0.00012603,2]
[394423404,1763558194280,-379.06002688,0.0001273,2]
[394423405,1763558196662,-160.51832996,0.0001273,2]
[394423406,1763558196861,-124.82409252,0.0001273,2]
[394423407,1763558196880,-124.82409252,0.00012859,2]
[394423408,1763558196891,-50.35181496,0.00012859,2]
[394423409,1763558198813,-164.20759794,0.00012859,2]
[394423410,1763558201362,-300.0,0.00012859,2]
[394423411,1763558215967,-25.01894394,0.00012859,2]
[394423412,1763558215985,-25.01894394,0.00012957,2]
[394423413,1763558215996,-249.96211212,0.00012957,2]
[394423414,1763558232358,-300.0,0.00012827,2]
[394423415,1763558236055,-1048.25041885,0.00012827,2]
[394423416,1763558238132,-500.0,0.00012827,2]
[394423417,1763558241831,-194.47980349,0.00012827,2]
[394423418,1763558243460,-374.57663598,0.00012827,2]
[394423419,1763558246272,-347.11585858,0.00012827,2]
[394423420,1763558247686,-242.73639536,0.00012827,2]
[394423421,1763558250308,-216.22520794,0.00012827,2]
[394423422,1763558252258,-300.0,0.00012827,2]
[394423423,1763558253666,-184.04,0.00012827,2]
[394423424,1763558257850,-241.33147702,0.00012827,2]
[394423425,1763558259909,-227.98607944,0.00012827,2]
[394423426,1763558262039,-213.59475807,0.00012827,2]
[394423427,1763558263509,-211.2603167,0.00012827,2]
[394423428,1763558265674,-380.60321431,0.00012827,2]
[394423429,1763558268197,-335.04494031,0.00012826,2]
[394423430,1763558270648,-328.271702,0.00012826,2]
[394423431,1763558273255,-368.04522985,0.00012826,2]
[394423432,1763558274704,-156.24735338,0.00012826,2]
[394423433,1763558276129,-12.39077446,0.00012826,2]
[394423434,1763558276156,-341.6323539,0.00012827,2]
[394423435,1763558278149,-581.19573489,0.00012827,2]
[394423436,1763558279674,-550.545713,0.00012827,2]
[394423437,1763558283908,-264.95505969,0.00012827,2]
[394423438,1763558286948,-300.0,0.00012826,2]
[394423439,1763558286972,-54.67857351,0.00012827,2]
[394423440,1763558288386,-381.9042425,0.00012827,2]
[394423441,1763558290866,-259.47912152,0.00012827,2]
[394423442,1763558294081,-172.12249522,0.00012827,2]
[394423443,1763558311623,-165.11096082,0.000128,2]
[394423444,1763558311647,-131.42190365,0.00012827,2]
[394423445,1763558314296,-150.0,0.00012827,2]
[394423446,1763558314520,-183.716,0.00012827,2]
[394423447,1763558325911,28409.9585155,0.00011958,2]
[394423448,1763558341185,-297.62578923,0.00012827,2]
[394423449,1763558342621,-320.45531104,0.00012827,2]
[394423450,1763558344046,-300.0,0.00012826,2]
[394423451,1763558344069,-46.26460194,0.00012827,2]
[394423452,1763558346637,-377.99317766,0.00012827,2]
[394423453,1763558416085,-169.76668593,0.00012826,2]
[394423454,1763558424686,5735.0,0.000161,3]
[394423455,1763558426596,784.92050923,0.00032,120]
[394423456,1763558431777,-169.76668593,0.00012571,2]
[394423457,1763558431800,-130.23331407,0.00012698,2]
[394423458,1763558433714,-165.15505969,0.00012698,2]
[394423459,1763558436366,-190.95036269,0.00012698,2]
[394423460,1763558439534,-160.66789128,0.00012634,2]
[394423461,1763558441046,-14.60519011,0.00012634,2]
[394423462,1763558441164,-377.55566224,0.00012698,2]
[394423463,1763558443049,-343.43803894,0.00012698,2]
[394423464,1763558476033,-122.90087644,0.00012698,2]
[394423465,1763558476056,-552.80376963,0.00012811,2]
[394423466,1763558477836,-292.73817395,0.00012811,2]
[394423467,1763558481037,-195.82558813,0.00012811,2]
[394423468,1763558482428,-216.35726433,0.00012811,2]
[394423469,1763558483805,-219.89751985,0.00012811,2]
[394423470,1763558485529,-266.2119629,0.00012811,2]
[394423471,1763558612198,-321.84061626,0.00012677,2]
[394423472,1763558617264,-292.89105075,0.00012677,2]
[394423473,1763558619908,-687.44886866,0.0001255,2]
[394423474,1763558623987,-271.27581898,0.0001255,2]
[394423475,1763558626538,-193.45137736,0.0001255,2]
[394423476,1763558627885,405.37554081,0.00012424,2]
[394423477,1763558629083,-158.62156415,0.0001255,2]
[394423478,1763558631590,-534.59055445,0.0001255,2]
[394423479,1763558633124,-151.56386386,0.0001255,2]
[394423480,1763558649787,156.24735338,0.00012424,2]
[394423481,1763558652822,686.15441831,0.0001245,2]
[394423482,1763558698997,1176.0,0.000139,3]
[394423483,1763558710734,2004.0,0.000125,2]
[394423484,1763558735310,29074.9597244,0.00012008,2]
[394423485,1763558776036,-185.42548979,0.0001255,2]
[394423486,1763558778572,-310.15941068,0.0001255,2]
[394423487,1763558781272,-240.89493648,0.0001255,2]
[394423488,1763558785901,-175.52271418,0.0001255,2]
[394423489,1763558788456,-104.77722078,0.0001255,2]
[394423490,1763558788481,-83.68836088,0.00012613,2]
[394423491,1763558821315,185.42548979,0.00012576,2]
[394423619,1763558830434,259.25,0.00012329,2]
[394423620,1763558840899,259.25,0.00012329,2]
[394423621,1763558851808,286.86,0.00012329,2]
[394423669,1763558859897,-91.66282049,0.00012613,2]
[394423670,1763558866545,195.82558813,0.00012548,2]
[394423671,1763558874626,188.46558166,0.00012548,2]
[394423672,1763558875019,-277.0,0.00012675,2]
[394423673,1763558875049,-1200.0,0.00012675,2]
[394423674,1763558875078,-300.0,0.00012675,2]
[394423675,1763558875106,-1200.0,0.00012675,2]
[394423679,1763558882491,4046.01,0.00012549,2]
[394423680,1763558882514,10000.01,0.00012549,2]
[394423681,1763558882538,10000.01,0.00012549,2]
[394423682,1763558882562,10000.01,0.00012549,2]
[394423683,1763558882598,421.96226941,0.00012549,2]
[394423685,1763558884157,300.0,0.00012675,2]
[394423688,1763558890576,10000.01,0.00012549,2]
[394423689,1763558890601,9278.04773059,0.00012549,2]
[394423690,1763558890624,1579.82268182,0.00012549,2]
[394423692,1763558893161,750.17,0.00012329,2]
[394423694,1763558899074,233.07192156,0.00012549,2]
[394423695,1763558906695,15590.0514885,0.0002,120]
[394423696,1763558907361,9016.76807844,0.00012549,2]
[394423697,1763558907384,10000.01,0.00012549,2]
[394423698,1763558907408,983.22192156,0.00012549,2]
[394423699,1763558915117,10000.01,0.00012549,2]
[394423700,1763558915152,599.99,0.00012549,2]
[394423702,1763558916984,425.72415665,0.00012675,2]
[394423703,1763558918622,500.0,0.00012675,2]
[394423704,1763558918654,500.0,0.00012675,2]
[394423705,1763558918701,500.0,0.00012675,2]
[394423706,1763558918739,500.0,0.00012675,2]
[394423707,1763558918777,500.0,0.00012675,2]
[394423708,1763558918808,532.2112468,0.00012675,2]
[394423709,1763558918848,210.98817357,0.00012675,2]
[394423710,1763558918882,500.0,0.00012675,2]
[394423711,1763558918916,500.0,0.00012675,2]
[394423712,1763558918954,271.57522295,0.00012675,2]
[394423713,1763558918997,500.0,0.00012675,2]
[394423714,1763558919045,500.0,0.00012675,2]
[394423715,1763558919081,500.0,0.00012675,2]
[394423716,1763558919125,500.0,0.00012675,2]
[394423717,1763558919158,500.0,0.00012675,2]
[394423718,1763558919205,500.0,0.00012675,2]
[394423719,1763558919250,500.0,0.00012675,2]
[394423720,1763558919283,500.0,0.00012675,2]
[394423721,1763558919328,459.52120003,0.00012675,2]
[394423723,1763558923722,1054.2945787,0.00012548,2]
[394423727,1763558939540,300.0,0.00012423,2]
[394423729,1763558953126,-300.0,0.00012547,2]
[394423730,1763558953157,-2382.00500272,0.00012548,2]
[394423731,1763558956039,-442.70404882,0.00012548,2]
[394423732,1763558957476,-231.24014149,0.00012548,2]
[394423733,1763558959475,-243.54353299,0.00012548,2]
[394423734,1763558960491,207.09,0.00032877,120]
[394423735,1763558986600,-315.0943809,0.00012548,2]
[394423736,1763558989299,-419.1815727,0.00012548,2]
[394423737,1763558990641,315.0943809,0.00012423,2]
[394423738,1763558992300,-464.74972944,0.00012548,2]
[394423739,1763559006284,655.1909297,0.00011713,2]
[394423740,1763559007819,168.012686,0.00011807,2]
[394423741,1763559012743,419.1815727,0.00012422,2]
[394423792,1763559037584,-300.0,0.00012547,2]
[394423793,1763559037593,-1200.0,0.00012547,2]
[394423794,1763559037602,-300.0,0.00012547,2]
[394423795,1763559037611,-16922.58812728,0.00012548,2]
[394423796,1763559037620,-500.0,0.00012676,2]
[394423797,1763559037629,-155.39006501,0.00012676,2]
[394423798,1763559037639,-157.8498372,0.00012676,2]
[394423799,1763559037648,-151.0,0.00012676,2]
[394423800,1763559037657,-205.52159326,0.00012703,2]
[394423801,1763559037666,-890000.0,0.00012727,2]
[394423802,1763559037676,-500.0,0.00012773,2]
[394423803,1763559037686,-500.0,0.00012773,2]
[394423804,1763559037696,-503.65604025,0.00012773,2]
[394423805,1763559037706,-500.0,0.00012773,2]
[394423806,1763559037716,-500.0,0.00012773,2]
[394423807,1763559037726,-500.0,0.00012773,2]
[394423808,1763559037736,-500.0,0.00012773,2]
[394423809,1763559037747,-500.0,0.00012773,2]
[394423810,1763559037761,-500.0,0.00012773,2]
[394423811,1763559037775,-500.0,0.00012773,2]
[394423812,1763559037785,-263.70606165,0.00012773,2]
[394423813,1763559037796,-2023.14264602,0.00012787,2]
[394423814,1763559037807,-151.0,0.000128,2]
[394423815,1763559037816,-151.0,0.000128,2]
[394423816,1763559037826,-151.0,0.000128,2]
[394423817,1763559037835,-151.0,0.000128,2]
[394423818,1763559037844,-151.0,0.000128,2]
[394423819,1763559037853,-151.0,0.000128,2]
[394423820,1763559037863,-65532.3956315,0.00012805,2]
[394423821,1763559037872,-23.04717861,0.00012811,2]
[394423822,1763559037881,-500.0,0.00012897,2]
[394423823,1763559037891,-1959.0,0.00012897,2]
[394423824,1763559037900,-500.0,0.00012897,2]
[394423825,1763559037909,-1100.0,0.000129,2]
[394423826,1763559037918,-10023.17028997,0.000129,2]
[394423827,1763559037927,-500.0,0.00012924,2]
[394423828,1763559037936,-1959.0,0.00012924,2]
[394423829,1763559037946,-500.0,0.00012924,2]
[394423830,1763559037955,-500.0,0.0001295,2]
[394423831,1763559037964,-500.0,0.00012952,2]
[394423832,1763559037973,-1959.0,0.00012952,2]
[394423833,1763559037982,-500.0,0.00012952,2]
[394423834,1763559037992,-500.0,0.00012958,2]
[394423835,1763559038001,-500.0,0.00012958,2]
[394423836,1763559038010,-151.0,0.00012958,2]
[394423837,1763559038020,-500.0,0.00012958,2]
[394423838,1763559038029,-500.0,0.00012979,2]
[394423839,1763559038039,-1959.0,0.00012979,2]
[394423840,1763559038049,-500.0,0.00012979,2]
[394423841,1763559038059,-500.0,0.00012985,2]
[394423842,1763559038068,-500.0,0.00012985,2]
[394423843,1763559038078,-254.3822629,0.00012985,2]
[394423844,1763559038088,-500.0,0.00012985,2]
[394423845,1763559038097,-500.0,0.00013007,2]
[394423846,1763559038107,-1959.0,0.00013007,2]
[394423847,1763559038117,-500.0,0.00013007,2]
[394423848,1763559038127,-500.0,0.00013013,2]
[394423849,1763559038136,-500.0,0.00013013,2]
[394423850,1763559038146,-254.08719922,0.00013013,2]
[394423851,1763559038157,-638.0,0.00013034,2]
[394423852,1763559038167,-1959.0,0.00013034,2]
[394423853,1763559038177,-500.0,0.00013034,2]
[394423854,1763559038188,-500.0,0.0001304,2]
[394423855,1763559038198,-500.0,0.0001304,2]
[394423856,1763559038208,-1959.0,0.00013061,2]
[394423857,1763559038219,-500.0,0.00013061,2]
[394423858,1763559038229,-500.0,0.00013068,2]
[394423859,1763559038239,-500.0,0.00013068,2]
[394423860,1763559038249,-500.0,0.00013073,2]
[394423861,1763559038260,-500.93977236,0.00013073,2]